Cogmind - Beta 13 @@@ ROGUE MODE // 2024.04.10 @ 11:21:56 Player: Jennifer Result: Self-destructed Performance ------------- Evolutions (1) 500 Regions Visited (2) 400 Robots Destroyed (15) 75 Value Destroyed (299) 299 Prototype IDs (2) 40 Alien Tech Used (0) 0 Bonus (0) 0 TOTAL SCORE: 1314 Bonus ------- None Cogmind --------- Core Integrity 358/400 Matter 154/300 Energy 125/125 System Corruption 0% Temperature Cool (0) Movement Treading (160) Location -9/Materials Parts ------- > --- POWER (1) -------- Light Ion Engine > --- PROPULSION (3) --- Light Treads Light Treads > --- UTILITY (2) ------ Small Storage Unit Seismic Detector > --- WEAPON (3) ------- Light Cannon Light Cannon > --- INVENTORY (8) ---- Ion Engine Heat Sink Light Assault Rifle Light Assault Rifle Peak State ------------ > --- POWER ------------ Light Ion Engine > --- PROPULSION ------- Light Treads Light Treads > --- UTILITY ---------- Small Storage Unit Targeting Computer > --- WEAPON ----------- Light Assault Rifle Light Cannon Light Cannon > --- INVENTORY -------- Ion Engine Heat Sink Light Assault Rifle Grenade Launcher [Rating: 8] Favorites ----------- Power Light Ion Engine Engine Light Ion Engine Propulsion Light Treads Treads Light Treads Utility Small Storage Unit Device Seismic Detector Storage Small Storage Unit Processor Targeting Computer Weapon Light Assault Rifle Ballistic Gun Light Assault Rifle Ballistic Cannon Light Cannon Launcher Grenade Launcher Build | -11 -10 -9 ------- Run | Yrd Mat Mat Slots Evolved 2 | . . 2 Power . | . . . Propulsion 1 | . . 1 Utility . | . . . Weapon 1 | . . 1 Parts Attached 13 | 5 5 3 Power 1 | 1 . . Engine 1 | 1 . . Core . | . . . Reactor . | . . . Propulsion 2 | 2 . . Treads 2 | 2 . . Leg . | . . . Wheel . | . . . Hover . | . . . Flight . | . . . Utility 3 | 1 1 1 Device 1 | . . 1 Storage 1 | 1 . . Processor 1 | . 1 . Hackware . | . . . Protection . | . . . Artifact . | . . . Weapon 7 | 1 4 2 Energy Gun . | . . . Energy Cannon . | . . . Ballistic Gun 3 | 1 1 1 Ballistic Cannon 2 | . 2 . Launcher 2 | . 1 1 Special Weapon . | . . . Impact Weapon . | . . . Slashing Weapon . | . . . Piercing Weapon . | . . . Special Melee Weapon . | . . . Unidentified Prototypes . | . . . Parts Lost 1 | . . 1 Power . | . . . Propulsion . | . . . Utility . | . . . Weapon 1 | . . 1 Highest Loss Streak 1 | . . 1 To Critical Strikes . | . . . Average Slot Usage (%) 84 | . 83 87 Engine 13 | . 14 11 Treads 26 | . 28 22 Storage 13 | . 14 11 Processor 5 | . 5 8 Ballistic Gun 10 | . 13 2 Ballistic Cannon 8 | . 3 22 Launcher 4 | . 3 8 Naked Turns . | . . . Heaviest Build 18 | 9 14 18 Greatest Support 40 | 40 40 40 Greatest Overweight (x) . | . . . Average Overweight (x) . | . . . Largest Inventory Capacity 8 | 8 8 8 Average Capacity 7 | 6 8 8 Most Carried 5 | 1 5 4 Average Carried 3 | . 3 4 Final Capacity 8 | 8 8 8 Final Carried 5 | 1 5 4 Class Distribution -------------------- 77% | Mutant 22% | Gunner Dominant Class ---------------- Mutant | -10/Materials Gunner | -9/Materials Resources | -11 -10 -9 ----------- Run | Yrd Mat Mat Matter Collected 336 | 204 113 19 Remotely . | . . . Salvage Created 238 | . 169 69 Parts 26 | . 19 7 Haulers Intercepted . | . . . Recyclers Shooed . | . . . Parts Field Recycled . | . . . Retrieved Matter . | . . . Parts Self-Destructed . | . . . Prevented . | . . . Kills | -11 -10 -9 ------- Run | Yrd Mat Mat Combat Hostiles Destroyed 12 | . 6 6 Guns 3 | . 3 . Cannons 2 | . 1 1 AOE 7 | . 2 5 Classes Destroyed 5 | . 3 2 Tunneler 1 | . . 1 Recycler 1 | . . 1 Watcher 1 | . 1 . Swarmer 7 | . 2 5 Grunt 5 | . 4 1 Best Kill Streak 3 | . 3 3 Combat Bots Only 3 | . 3 3 Max Kills in Single Turn 3 | . 3 1 Gunslinging . | . . . Exploded 2 | . 2 1 Melee . | . . . Uniques/NPCs Destroyed . | . . . Combat | -11 -10 -9 -------- Run | Yrd Mat Mat Hostile Shots Fired 56 | . 19 37 Missed 24 | . 7 17 Damage Taken 421 | . 144 277 Core 74 | . 32 42 Absorbed by Shields . | . . . Core Remaining (%) 93 | 100 87 . Volleys Fired 27 | . 13 14 Largest 2 | . 2 2 Hottest 70 | . 70 70 Shots Fired 34 | . 14 20 Gun 11 | . 11 . Cannon 14 | . 2 12 Launcher 9 | . 1 8 Special . | . . . Kinetic 25 | . 13 12 Thermal . | . . . Explosive 9 | . 1 8 Electromagnetic . | . . . Robot Hit Streak 8 | . 8 8 Robot Miss Streak 2 | . 1 2 Penetration Max . | . . . Secondary Targets . | . . . Shots Hit Robots 23 | . 12 11 Core Hits 22 | . 12 10 Critical Kills . | . . . Critical Parts Destroyed . | . . . Critical Strikes 1 | . . 1 Blast 1 | . . 1 Melee Attacks . | . . . Impact . | . . . Slashing . | . . . Piercing . | . . . Sneak Attacks . | . . . Combat Hostiles . | . . . Follow-up Attacks . | . . . Damage Inflicted 770 | . 248 522 Guns 82 | . 82 . Cannons 153 | . 20 133 Explosions 533 | . 146 387 Melee . | . . . Ramming 2 | . . 2 Kinetic 235 | . 102 133 Thermal . | . . . Explosive 533 | . 146 387 Electromagnetic . | . . . Impact . | . . . Slashing . | . . . Piercing . | . . . Highest Corruption . | . . . Average Corruption . | . . . Corruption Purged . | . . . Corruption Blocked . | . . . Overload Shots . | . . . Overflow Damage 51 | . 26 25 Projectiles . | . . . Explosions 51 | . 26 25 Melee . | . . . Knockbacks 3 | . . 3 Impact . | . . . Kinetic 3 | . . 3 Secondary . | . . . Self-Inflicted Damage 130 | . 28 102 Shots 4 | . 1 3 Rammed . | . . . Targets Rammed 1 | . . 1 Kicked . | . . . Crushed 1 | . . 1 Highest Temperature 15 | . 15 12 Average Temperature 10 | . 10 11 Received Heat Transfer 81 | . 54 27 Siege Activations . | . . . Robots Corrupted . | . . . Combat Hostiles . | . . . Parts Fried . | . . . Impact Corruptions . | . . . Robots Melted . | . . . Combat Hostiles . | . . . Parts Melted . | . . . Heat Transferred . | . . . Parts Sabotaged . | . . . Parts Stolen . | . . . Parts Stripped . | . . . Power Chain Reactions . | . . . Alert | -11 -10 -9 ------- Run | Yrd Mat Mat Peak Influence 267 | . 161 267 Initial 22 | . . 22 Average 54 | . 36 135 Maximum Alert Level 1 | . . 1 Low Security (%) 98 | 100 100 91 Level 1 1 | . . 8 Level 2 . | . . . Level 3 . | . . . Level 4 . | . . . Level 5 . | . . . High Security . | . . . Max Security . | . . . Squads Dispatched 3 | . 2 1 Investigation 2 | . 2 . Extermination . | . . . Reinforcement 1 | . . 1 Assault . | . . . Garrison . | . . . Intercept . | . . . Searches Triggered . | . . . Construction Impeded . | . . . Haulers Reinforced . | . . . Active Scanning Responses . | . . . Cargo Convoy Interrupts . | . . . Stealth | -11 -10 -9 --------- Run | Yrd Mat Mat Distress Signals 1 | . 1 . Communications Jammed . | . . . Distress Signals . | . . . Times Spotted 24 | . 9 15 Peak Tracking Total 6 | . 4 6 Tactical Retreats . | . . . Traps | -11 -10 -9 ------- Run | Yrd Mat Mat Traps Triggered 1 | . 1 . Indirectly . | . . . Trap Hack Attempts . | . . . Triggered . | . . . Disarmed . | . . . Reprogrammed . | . . . Reused . | . . . Traps Extracted . | . . . Installed . | . . . Triggered . | . . . Machines | -11 -10 -9 ---------- Run | Yrd Mat Mat Machines Disabled 3 | . . 3 Max in Single Turn 1 | . . 1 Machines Repaired . | . . . Machines Dismantled . | . . . Machines Sabotaged . | . . . Overloaded Fab Kills . | . . . Hacking | -11 -10 -9 --------- Run | Yrd Mat Mat Machines Accessed 6 | . 5 1 Terminals 6 | . 5 1 Fabricators . | . . . Repair Stations . | . . . Recycling Units . | . . . Scanalyzers . | . . . Garrison Access . | . . . Total Hacks 19 | . 18 1 Successful 11 | . 11 . Failed 8 | . 7 1 Catastrophic 6 | . 5 1 Database Lockouts . | . . . Manual 15 | . 14 1 Terminals 19 | . 18 1 Fabricators . | . . . Repair Stations . | . . . Recycling Units . | . . . Scanalyzers . | . . . Garrison Access . | . . . Terminal Hacks 7 | . 7 . Robot Analysis 1 | . 1 . Prototype ID Bank 1 | . 1 . Level Access Points 1 | . 1 . Terminal Index 2 | . 2 . Hauler Manifests 1 | . 1 . Registered Components 1 | . 1 . Fabricator Hacks . | . . . Repair Station Hacks . | . . . Recycling Unit Hacks . | . . . Scanalyzer . | . . . Garrison Access Hacks . | . . . Unauthorized Hacks 4 | . 4 . Terminals 4 | . 4 . Botnet 4 | . 4 . Fabricators . | . . . Repair Stations . | . . . Recycling Units . | . . . Scanalyzers . | . . . Garrison Access . | . . . Data Cores Recovered . | . . . Used . | . . . Hacking Detections 6 | . 5 1 Full Trace Events 1 | . 1 . Feedback Events . | . . . Feedback Blocked . | . . . Robot Schematics Acquired . | . . . Robots Built . | . . . Authchips . | . . . Time . | . . . Total Robot Build Rating . | . . . Part Schematics Acquired . | . . . Parts Built . | . . . Authchips . | . . . Time . | . . . Total Part Build Rating . | . . . Parts Repaired . | . . . Time . | . . . Parts Recycled . | . . . Recycled Matter . | . . . Retrieved Matter . | . . . Retrieved Components . | . . . Parts Scanalyzed . | . . . Part Schematics Acquired . | . . . Parts Damaged . | . . . Bothacking | -11 -10 -9 ------------ Run | Yrd Mat Mat Used RIF Installer . | . . . Robots Hacked . | . . . Non-combat . | . . . Combat . | . . . Robot Hacks Applied . | . . . Relay Couplers Released . | . . . Fabnet Peak Effective % . | . . . Robots Rewired . | . . . Allies Hacked . | . . . Hacks Repelled . | . . . Allies | -11 -10 -9 -------- Run | Yrd Mat Mat Total Allies . | . . . Largest Group . | . . . Highest-Rated Group . | . . . Highest-Rated Ally . | . . . Total Orders . | . . . Ally Attacks . | . . . Total Damage . | . . . Kills . | . . . Allies Corrupted . | . . . Allies Melted . | . . . Intel | -11 -10 -9 ------- Run | Yrd Mat Mat Robot Analysis Total 1 | . 1 . Derelict Logs Recovered . | . . . Drone Launches . | . . . Drone Recoveries . | . . . Exploration | -11 -10 -9 ------------- Run | Yrd Mat Mat Turns Passed 936 | 79 656 201 Spaces Moved 526 | 46 385 95 Core 3 | 3 . . Treads 523 | 43 385 95 Legs . | . . . Wheels . | . . . Hover . | . . . Flight . | . . . Fastest Speed 50 | 50 160 160 Average Speed 159 | 152 160 160 Slowest Speed 160 | 160 160 160 Overloaded Moves . | . . . Propulsion Burnouts . | . . . Robots Hopped . | . . . Cave-ins Triggered . | . . . Exploration Rate (%) 23 | 3 54 14 Regions Visited 2 Branch Regions . Pre-discovered Areas . | . . . Known Exits Taken 1 | . 1 . Unknown Exits Taken 1 | 1 . . Scrap Searched . | . . . Spaces Dug . | . . . Terrain Destroyed 40 | . 6 34 Melee . | . . . Projectile . | . . . AOE 40 | . 6 34 Terrain Rammed . | . . . Walls Destroyed . | . . . Machines Disabled . | . . . Actions | -11 -10 -9 --------- Run | Yrd Mat Mat Total 587 | 52 413 122 Wait 14 | 1 5 8 Move 524 | 45 384 95 Hop . | . . . Pick Up 5 | 1 4 . Fast Attach 8 | 5 2 1 Attach 3 | . 2 1 Detach 3 | . 2 1 Swap 2 | . 1 1 Drop . | . . . Fire 27 | . 13 14 Melee . | . . . Ram . | . . . Kick . | . . . Crush 1 | . . 1 Escape Stasis . | . . . Rewire . | . . . Trap . | . . . Miscellaneous . | . . . Route ------- -11/Scrapyard -10/Materials (discovered 4 exits: *Mat x3 / [*Min]) -9/Materials History --------- Turn | Location | Event 29 | -11/Scrapyard | Discovered new exit (range 15) 80 | -11/Scrapyard | Entered Materials 239 | -10/Materials | Discovered new exit (range 6) 309 | -10/Materials | Build established: Mutant 463 | -10/Materials | Discovered new exit (range 16) 664 | -10/Materials | Discovered new exit (range 16) 720 | -10/Materials | Identified exit to Materials 736 | -10/Materials | Entered another Materials area 736 | -9/Materials | Evolved 2 slots: Propulsion x1, Weapon x1 937 | -9/Materials | Self-destructed Last Messages --------------- 00828_ G-34 Mercenary suffers critical hit (Blast). 00828_ Destroyed Sml. Laser. 00828_ G-34 Mercenary destroyed. 00834_ Acquired 4 matter. 00835_ Acquired 3 matter. 00839_ Acquired 4 matter. 00845_ Acquired 2 matter. 00848_ Acquired 1 matter. 00855_ Acquired 3 matter. 00864_ Crushed T-07 Excavator. 00864_ T-07 Excavator destroyed. 00865_ Acquired 2 matter. 00888_ Discarded Targeting Computer. 00892_ Acquired Seismic Detector. 00919_ Electrolysis Chamber disabled. 00919_ S-10 Pest destroyed. 00935_ Grenade Launcher destroyed. 00935_ Destroyed Grenade Launcher. 00935_ R-06 Scavenger destroyed. Map ----- +----------------------------------------------------+ | | | | | | | ?????????????????????????????????????????????????? | | ?????????????????????????????????????????????????? | | ??????????????????????????????????????###########? | | ?????????????????????????????########## #? | | ?????????????????????????????# # #? | | ?????????????????????????????# # ## | | ?????????????????????????????# # # | | ?????????????????????????????# # # | | ?????????????????????????????# # # | | ?????????????????????????????# # + | | ?????????????????????????????# # # | | ?????????????????????????????? ########### | | ???????????????????????????????? ???????????# | | ????????????????????????????????##+############## | | ?????????????????? "????????????# + # | | ?????????????????? ""????????#### ##### # | | ?????????????????? ????????# #???# + | | ?????????????????? """???????# #???# # | | ????????????????????"" ??????# #???# # | | ?????????????????????" ????## #???# # | | ?????????????????????? ##### ############ | | ?????????????????##/#### #????## | | ??????????+ ss ss%@ s #???### | | ??????????# Y #### #?# # # | | ???????????????????????######### [ | | ???????????????????????????????# % | | ???????????????????????????????# """ | | ???????????????????????????????? " """ ##### | | ???????????????????????????????? """% ? | | ???????????????????????????????? =[ | | ????????????????????????????????#% # | | ????????????????????????????????? """ """ # "" | | ????????????????????????????????? """ """ + " " | | ????????????????????????????????? ""?? """ ?# ?"" | | ????????????????????????????????? ?????? ?# ??? | | ????????????????????????????????? ?????????????? | | ????????????????????????????????? "?????????????? | | ????????????????????????????????? ??????????????? | | ?????????????????????????????????????????????????? | | ?????????????????????????????????????????????????? | | ?????????????????????????????????????????????????? | | ?????????????????????????????????????????????????? | | ?????????????????????????????????????????????????? | | ?????????????????????????????????????????????????? | | ?????????????????????????????????????????????????? | | ?????????????????????????????????????????????????? | | ?????????????????????????????????????????????????? | +----------------------------------------------------+ Best States ------------- Heat Dissipation 28 Energy Generation 10 Energy Capacity 125 Matter Stores 300 Matter Capacity 300 Sight Range 16 Terrain Scan Density 10 Evasion (%) 40 Targeting Accuracy 5 Recoil Reduction 2 Item Schematics ----------------- None Robot Schematics ------------------ None Fabricated ------------ Nothing Alien Tech Used ----------------- None Achievements -------------- None Challenges ------------ None Game ------ Seed WarpParticleEdition Manual? 0 Play Time 00:10:06 Cumulative 38.1 hours Start 2024.04.10 @ 11:13:38 End 2024.04.10 @ 11:21:56 Sessions 1 Manual Loads 0 Difficulty Rogue Special Mode None Game No. 58 Rogue 58 Adventurer 0 Explorer 0 Win Type - Total 0 Types 0/0/0/0/0/0/0/0/0 Lore% 17 Gallery% 25 Achievement% 26 Wizard Run 0 Options --------- Layout 2 ASCII 0 Keyboard 1 Movement Numpad Keybinds 0 Fullscreen 1 Font 24/Crisp Map View 50x44 Zoom Use 0% Tactical HUD 1 Map Filters NONE Filters NONE Steam 1 RUN: 3cae1e76-df9e-49fd-8add-9478949f16d8